bitfinex/quotes_ETHUSD_20241203
["timestamp","ask_amount","ask_price","bid_price","bid_amount"]
[1733262549719,0.32975031,3623.6,3623.1,2.76004]
[1733262550020,0.20609416,3623.5,3623.1,2.76004]
[1733262550336,0.20609416,3623.4,3623.1,2.76004]
[1733262550622,0.20609416,3623.3,3623.1,2.76004]
[1733262550820,1.5496,3623.7,3622.8,2.76022]
[1733262550821,1.8792958,3623.5,3622.8,2.76022]
[1733262551025,0.53577321,3623.4,3622.6,2.76041]
[1733262551186,1.5496,3623.2,3622.6,2.76041]
[1733262551518,0.20606401,3623.1,3622.6,2.76041]
[1733262551831,1.5496,3623.2,3622.7,2.76034]
[1733262551982,0.2060502,3623.1,3622.5,0.22216223]
[1733262552179,1.5496,3623.2,3622.6,2.76038]
[1733262552384,0.2060485,3623.1,3622.6,2.76038]
[1733262552595,1.5496,3623.2,3622.6,2.76038]
[1733262552824,0.20605077,3623.1,3622.6,2.76038]
[1733262553019,1.5496,3623.2,3622.6,2.76038]
[1733262553228,0.20604459,3623.1,3622.6,2.76038]
[1733262553522,1.507,3623.0,3622.5,0.22216223]
[1733262553722,0.20605088,3622.9,3622.5,0.22216223]
[1733262553878,1.507,3623.0,3622.5,0.22216223]
[1733262554082,0.20605554,3622.9,3622.5,0.22216223]
[1733262554289,1.507,3623.0,3622.6,2.76038]
[1733262554493,0.20605919,3622.9,3622.7,2.76035]
[1733262554793,1.507,3623.0,3622.5,0.22216223]
[1733262555312,0.20606224,3622.9,3622.5,0.22216223]
[1733262555511,1.507,3623.0,3622.5,0.22216223]
[1733262555810,0.20606006,3622.9,3622.5,0.22216223]
[1733262555985,1.507,3623.0,3622.5,0.22216223]
[1733262556323,0.20605332,3622.9,3622.5,0.22216223]
[1733262556490,1.507,3623.0,3622.5,0.22216223]
[1733262556690,0.20607049,3622.9,3622.5,0.22216223]
[1733262556879,1.507,3623.0,3622.5,0.22216223]
[1733262557095,0.20607186,3622.9,3622.5,0.22216223]
[1733262557299,1.507,3623.0,3622.5,0.22216223]
[1733262557527,0.20608137,3622.9,3622.5,0.22216223]
[1733262557744,1.507,3623.0,3622.7,2.7603]
[1733262558051,1.507,3623.0,3622.5,1.78866223]
[1733262558199,1.507,3623.0,3622.9,2.76021]
[1733262558398,0.2060802,3623.0,3622.5,2.49365576]
[1733262558605,1.5804,3623.3,3622.7,2.76033]
[1733262558846,0.20607476,3623.2,3622.5,0.04135008]
[1733262559150,1.5804,3623.3,3622.5,0.04135008]
[1733262559151,0.20607476,3623.1,3622.5,2.80185008]
[1733262559300,0.20613675,3623.0,3622.5,2.80185008]
[1733262559500,0.39566705,3623.5,3622.5,2.80185008]
[1733262559501,1.77594022,3622.9,3622.5,0.04135008]
[1733262559726,0.20614022,3622.8,3622.5,0.04135008]
[1733262559936,0.20614883,3622.7,3622.5,0.04135008]
[1733262560244,1.5698,3622.9,3622.5,0.04135008]
[1733262560446,0.20621308,3622.8,3622.5,0.04135008]
[1733262560758,0.20621308,3622.7,3622.5,0.04135008]
[1733262561039,0.20621308,3622.6,3622.5,0.04135008]
[1733262561827,1.73991308,3622.6,3622.5,0.04135008]
[1733262565014,2.07033287,3622.6,3622.5,0.04135008]
[1733262565638,2.72499938,3622.6,3622.5,0.04135008]
[1733262566112,3.13844507,3622.6,3622.5,0.04135008]
[1733262566313,3.13836618,3622.6,3622.5,0.04135008]
[1733262566726,3.31098835,3622.6,3622.5,0.04135008]
[1733262567853,3.31165347,3622.6,3622.5,0.04135008]
[1733262569675,9.07209347,3622.6,3622.5,0.04135008]
[1733262569817,1.5889,3622.2,3620.6,2.7619]
[1733262570019,4.5889,3622.0,3620.6,0.36628419]
[1733262570233,1.60533066,3621.9,3621.2,1.5384]
[1733262570435,1.7615644,3622.0,3621.2,1.5384]
[1733262570436,1.20894564,3621.8,3621.4,2.76132]
[1733262570727,1.15522228,3622.5,3621.4,2.76132]
[1733262570728,0.46497909,3621.7,3621.4,2.76132]
[1733262571039,1.76155187,3622.2,3621.5,2.76128]
[1733262571040,0.20665737,3621.6,3621.5,2.76128]
[1733262571663,0.41279752,3622.1,3621.5,2.76128]
[1733262571830,0.79463889,3622.0,3621.4,2.76136]
[1733262572032,1.5889,3622.2,3621.4,2.76136]
[1733262572033,0.79463889,3621.9,3621.4,2.76136]
[1733262572237,0.46439935,3621.8,3621.2,4.29989]
[1733262572532,1.5889,3621.6,3621.0,2.76164]
[1733262572857,0.20636289,3621.5,3621.0,2.76164]
[1733262573070,1.5889,3621.6,3621.0,2.76164]
[1733262573927,1.5889,3621.6,3620.8,1.5384]
[1733262574120,0.20630201,3621.5,3620.8,4.30018]
[1733262574323,1.5889,3621.6,3620.8,4.30018]
[1733262574568,0.46404803,3621.5,3620.8,4.30018]
[1733262574869,1.5889,3621.6,3620.8,4.30018]
[1733262574870,0.20624036,3621.4,3620.8,4.30018]
[1733262575025,1.5889,3621.6,3620.9,2.76174]
[1733262575227,0.20624465,3621.5,3620.9,2.76174]
[1733262575555,0.20624465,3621.4,3620.9,2.76174]
[1733262575762,1.5889,3621.6,3620.9,2.76174]
[1733262576070,0.2061854,3621.5,3620.8,1.5384]
[1733262576222,1.5889,3621.6,3620.7,2.76188]
[1733262576570,1.5889,3621.6,3620.8,2.7618]
[1733262576571,0.20613732,3621.5,3620.8,2.7618]
[1733262576871,0.20613732,3621.4,3620.5,1.5513]
[1733262577169,1.5889,3621.6,3620.8,2.76181]
[1733262577375,0.20610189,3621.5,3620.8,2.76181]
[1733262577725,0.20610189,3621.4,3620.8,2.76181]
[1733262577926,1.5889,3621.6,3620.8,2.76181]
[1733262578237,0.20610226,3621.5,3620.8,2.76181]
[1733262578435,1.5889,3621.6,3620.8,2.76181]
[1733262578664,0.20607971,3621.5,3620.8,2.76181]
[1733262578836,1.5889,3621.6,3620.6,2.76196]
[1733262579167,0.20608262,3621.5,3620.7,2.76186]
[1733262579329,0.20608262,3621.5,3620.5,4.31332]
[1733262579530,0.20608262,3621.4,3620.5,4.31332]
[1733262579765,1.5889,3621.6,3620.5,4.31332]
[1733262579975,2.76114,3621.7,3620.5,4.31332]
[1733262579976,1.5427,3621.4,3620.5,2.76202]
[1733262580261,1.5427,3621.4,3620.3,1.5512]
[1733262580262,0.46370598,3621.3,3620.3,1.5512]
[1733262580466,0.20608838,3621.2,3620.4,2.76212]
[1733262580660,1.5427,3621.4,3620.4,2.76212]
[1733262580973,0.46367384,3621.3,3620.5,2.76202]
[1733262581140,1.5427,3621.4,3620.5,2.76202]
[1733262581141,0.20607728,3621.2,3620.5,2.76202]
[1733262581323,1.5427,3621.4,3620.5,2.76202]
[1733262581650,0.46361358,3621.3,3620.5,2.76202]
[1733262581854,0.20605048,3621.2,3620.5,2.76202]
[1733262582080,1.5427,3621.4,3620.5,2.76202]
[1733262582226,0.20604977,3621.3,3620.5,2.76202]
[1733262582426,0.20604977,3621.2,3620.5,2.76202]
[1733262582622,1.5427,3621.4,3620.3,1.5512]
[1733262582863,0.46359059,3621.3,3620.4,2.76211]
[1733262583069,0.20604026,3621.2,3620.3,1.5512]
[1733262583412,1.5427,3621.4,3620.3,1.5512]
[1733262583567,0.20602923,3621.3,3620.6,2.7619]
[1733262583863,1.5427,3621.4,3620.8,2.76181]
[1733262584227,1.5427,3621.4,3620.8,2.76178]
[1733262584432,1.5427,3621.4,3620.9,2.76172]
[1733262585439,1.5427,3621.4,3620.3,1.5512]
[1733262585648,0.20606247,3621.3,3620.3,1.5512]
[1733262585952,1.5427,3621.4,3620.3,1.5512]
[1733262585953,0.20606247,3621.2,3620.3,1.5512]
[1733262586149,1.5427,3621.4,3620.3,1.5512]
[1733262586150,0.20606247,3621.1,3620.3,1.5512]
[1733262586353,1.5427,3621.4,3620.3,1.5512]
[1733262586564,0.46368749,3621.3,3620.4,2.76207]
[1733262586871,0.20608154,3621.2,3620.4,2.76207]
[1733262587196,1.5889,3621.0,3619.9,1.5372]
[1733262587356,1.5889,3620.8,3619.9,2.7625]
[1733262587883,2.7619,3620.7,3619.4,2.76287]
[1733262588103,1.5406,3620.3,3619.0,1.5965]
[1733262588588,1.5406,3620.3,3619.3,2.76295]
[1733262588794,1.52456427,3620.3,3619.3,2.76295]
[1733262589449,1.52456427,3620.3,3619.4,2.76288]
[1733262589654,1.52456427,3620.3,3619.1,0.77067643]
[1733262589901,1.52456427,3620.3,3619.2,2.76304]
[1733262590044,1.52456427,3620.3,3619.1,3.199052]
[1733262590045,1.52456427,3620.3,3619.5,2.76279]
[1733262590240,1.52456427,3620.3,3619.6,2.76273]
[1733262590446,0.32971435,3620.9,3619.6,1.899773]
[1733262590747,2.50071307,3621.5,3619.6,1.899773]
[1733262590748,0.58721632,3621.3,3620.4,2.76208]
[1733262591087,0.32964253,3621.4,3620.6,2.76196]
[1733262591246,0.25758509,3621.3,3620.6,2.76196]
[1733262591443,2.76111,3621.8,3620.4,2.76209]
[1733262591680,2.76111,3621.8,3620.2,1.6235]
[1733262591681,0.51517051,3621.7,3620.5,2.76202]
[1733262591887,1.5552,3621.5,3620.5,2.76202]
[1733262592193,0.25758244,3621.4,3620.5,2.76202]
[1733262592339,1.5552,3621.5,3620.5,2.76202]
[1733262592546,0.58743874,3621.4,3620.5,2.76202]
[1733262592786,0.32979035,3621.4,3620.5,2.76202]
[1733262592942,1.5552,3621.5,3620.5,2.76202]
[1733262593155,0.58744234,3621.4,3620.5,2.76202]
[1733262593396,1.5552,3621.5,3620.5,2.76202]
[1733262593397,0.25765015,3621.3,3620.5,2.76202]
[1733262593545,1.5552,3621.5,3620.5,2.76202]
[1733262593749,0.58759567,3621.4,3620.5,2.76202]
[1733262594051,0.25771535,3621.3,3620.5,2.76202]
[1733262594382,1.5552,3621.5,3620.2,1.6235]
[1733262594721,0.58779131,3621.4,3620.3,3.200731]
[1733262594873,0.32998823,3621.4,3620.6,2.76189]
[1733262595079,0.25779853,3621.3,3620.6,2.76189]
[1733262595316,1.81310003,3621.5,3620.6,2.76189]
[1733262595617,0.58801324,3621.4,3620.7,2.76188]
[1733262595918,0.58801324,3621.3,3620.7,2.76188]
[1733262596091,1.81310048,3621.5,3620.7,2.76188]
[1733262596290,0.58816996,3621.4,3620.7,2.76188]
[1733262596476,0.58816996,3621.3,3620.7,2.76188]
[1733262596672,0.25796928,3621.2,3620.7,2.76188]
[1733262596899,1.5552,3621.5,3620.7,2.76188]
[1733262597115,0.58817445,3621.4,3620.7,2.76188]
[1733262597318,0.58817445,3621.3,3620.9,2.76174]
[1733262597532,1.5552,3621.5,3620.9,2.76174]
[1733262597533,0.25803331,3621.2,3620.9,2.76174]
[1733262597821,1.5552,3621.5,3620.7,0.276188]
[1733262597976,0.58832026,3621.4,3620.7,0.276188]
[1733262598172,0.58832026,3621.3,3620.6,2.76194]
[1733262598468,0.5884335,3621.2,3620.3,0.438581]
[1733262598578,1.5552,3621.5,3620.7,2.76189]
[1733262598773,0.58852283,3621.4,3620.5,2.76201]
[1733262598979,1.5552,3621.5,3620.2,4.38573]
[1733262598980,1.5552,3621.5,3620.7,2.76182]
[1733262599220,0.58850266,3621.4,3620.7,2.76186]
[1733262599522,0.2581152,3621.3,3620.7,2.76188]
[1733262599678,0.58862786,3621.2,3620.8,0.276188]
[1733262599876,1.5552,3621.5,3620.8,3.037968]
[1733262600210,0.58872368,3621.4,3620.9,2.76174]
[1733262600526,0.58872368,3621.3,3620.9,2.76174]
[1733262600719,0.58872368,3621.2,3620.8,0.276188]
[1733262600877,0.20656625,3621.1,3620.9,0.3038008]
[1733262601078,0.20656545,3621.0,3620.9,0.3038008]
[1733262602097,0.20656545,3621.0,3620.9,3.0655408]
[1733262602525,0.20656545,3621.0,3620.9,0.3038008]
[1733262602739,0.20656545,3621.0,3620.9,3.0655408]
[1733262603542,0.20656545,3621.0,3620.9,0.3038008]
[1733262604412,0.20656545,3621.0,3620.9,3.0655408]
[1733262605248,0.20656545,3621.0,3620.4,4.32619]
[1733262605398,0.20656545,3620.9,3620.5,2.76203]
[1733262605600,0.20656545,3620.8,3620.5,2.76203]
[1733262605794,1.5728,3621.0,3620.4,1.5641]
[1733262606141,0.20669598,3620.9,3620.3,2.76217]
[1733262606343,0.20669598,3620.8,3620.3,3.194797]
[1733262606505,1.5728,3621.0,3620.3,3.194797]
[1733262606707,0.20671225,3620.9,3619.7,1.5367]
[1733262607040,0.20671225,3620.9,3619.6,3.039003]
[1733262607041,1.5728,3620.7,3619.6,0.276273]
[1733262607263,1.5728,3620.5,3619.5,2.76274]
[1733262607560,0.79587573,3620.4,3619.4,1.5367]
[1733262607720,0.20671225,3620.3,3619.7,2.76265]
[1733262607915,0.20671225,3620.2,3619.7,2.76265]
[1733262608154,0.20671225,3620.1,3619.7,2.76265]
[1733262608462,1.5728,3620.5,3619.4,1.5367]
[1733262608612,1.20910849,3620.4,3619.5,0.429962]
[1733262608814,0.46504168,3620.3,3619.0,1.5367]
[1733262609014,0.46504168,3620.2,3620.1,2.76234]
[1733262609455,1.5728,3620.5,3619.8,2.76257]
[1733262609661,0.20664384,3620.4,3620.1,2.76229]
[1733262609869,1.5155,3620.7,3619.9,2.76246]
[1733262610069,0.79558239,3620.6,3620.2,2.76227]
[1733262610275,1.5155,3620.7,3620.2,2.76227]
[1733262610276,0.46495216,3620.5,3620.2,2.76227]
[1733262610567,0.46495216,3620.4,3620.2,2.76227]
[1733262610780,0.20664729,3620.3,3619.9,0.429916]
[1733262610940,1.5155,3620.7,3620.0,2.7624]
[1733262611279,1.20881975,3620.6,3619.8,2.76255]
[1733262611426,1.98043067,3620.5,3619.8,2.76257]
[1733262611774,0.46493067,3620.4,3619.8,2.76257]
[1733262611958,0.46493067,3620.3,3619.8,2.76257]
[1733262612127,0.46493067,3620.2,3619.8,2.76257]
[1733262612327,0.46493067,3620.1,3619.4,1.6053]
[1733262612553,1.5155,3620.5,3619.8,2.76252]
[1733262612758,0.79545615,3620.4,3619.8,2.76252]
[1733262613070,1.5155,3620.5,3620.1,2.76233]
[1733262613071,0.20661199,3620.3,3620.1,2.76233]
[1733262613367,1.5155,3620.5,3620.1,2.76233]
[1733262613529,0.46481939,3620.4,3620.1,2.76233]
[1733262613734,0.20658642,3620.3,3620.1,2.76233]
[1733262613941,1.5155,3620.5,3619.9,2.76248]
[1733262614477,0.46485841,3620.4,3620.3,2.7622]
[1733262614687,0.46485841,3620.4,3620.0,1.902148]
[1733262614979,0.20660374,3620.3,3620.0,1.902148]
[1733262615184,1.5155,3620.5,3620.0,1.6259]
[1733262615476,0.46486437,3620.4,3620.0,2.76237]
[1733262615631,0.20660777,3620.3,3620.0,2.76237]
[1733262615835,1.5155,3620.5,3619.7,2.76264]
[1733262616070,0.79547619,3620.4,3619.7,2.76264]
[1733262616281,0.46488681,3620.3,3619.5,1.5026]
[1733262616453,0.46488681,3620.2,3619.9,2.7625]
[1733262616630,0.20661386,3620.1,3620.0,2.76243]
[1733262616980,1.15522228,3620.8,3620.0,1.5002]
[1733262616981,1.5081,3620.8,3620.0,1.5002]
[1733262617162,0.79533499,3620.7,3620.2,2.7622]
[1733262617479,0.46481037,3620.6,3620.2,2.7622]
[1733262617766,0.2582296,3620.5,3620.2,2.7622]
[1733262617972,0.20658299,3620.5,3620.2,3.18844]
[1733262618141,1.5081,3620.8,3620.2,3.18844]
[1733262618142,0.20658299,3620.4,3620.2,3.18844]
[1733262618346,1.5081,3620.8,3620.2,3.18844]
[1733262618562,1.5081,3620.8,3620.0,1.5002]
[1733262618563,0.79540108,3620.7,3620.0,4.26261]
[1733262618758,0.46484491,3620.6,3620.0,1.5002]
[1733262618960,0.46484491,3620.5,3620.2,2.76226]
[1733262619268,0.46487233,3620.4,3620.2,2.76226]
[1733262619473,0.2065976,3620.3,3620.2,2.76226]
[1733262619778,0.46488531,3620.3,3620.2,2.76226]
[1733262620137,0.2065976,3620.3,3620.2,2.76226]
[1733262621080,1.5081,3620.8,3620.4,2.76205]
[1733262621374,0.79546395,3620.7,3620.5,2.76204]
[1733262621575,0.79546395,3620.6,3620.5,2.76204]
[1733262621870,1.5076,3621.1,3620.5,1.515]
[1733262622077,0.79543765,3621.0,3620.3,0.426246]
[1733262622232,1.5076,3621.1,3619.8,2.50071307]
[1733262622233,0.46486616,3620.9,3620.4,2.76208]
[1733262622439,0.46486616,3620.8,3620.2,1.565]
[1733262622640,0.20660718,3620.7,3620.2,1.565]
[1733262622868,1.5076,3621.1,3620.5,2.76199]
[1733262623076,0.79546771,3621.0,3620.3,2.76213]
[1733262623277,0.20661519,3620.9,3620.2,1.565]
[1733262623433,0.20661519,3620.8,3620.7,2.76189]
[1733262623975,1.5076,3621.1,3620.8,2.76176]
[1733262624135,0.20660842,3621.0,3620.8,2.76176]
[1733262624482,0.20660842,3620.9,3620.8,2.76176]
[1733262625471,1.5728,3621.3,3621.0,2.76162]
[1733262625636,0.20660436,3621.2,3621.1,2.76159]
[1733262625836,0.20660436,3621.2,3621.1,6.85470307]
[1733262626039,0.27544399,3622.2,3622.1,2.76082]
[1733262626240,1.34320867,3622.2,3622.1,2.76082]
[1733262626438,0.86405221,3622.2,3622.1,2.76082]
[1733262626639,0.25823325,3622.2,3622.1,2.76082]
[1733262626873,0.13811258,3622.7,3622.1,3.196142]
[1733262627057,1.15522228,3623.0,3622.1,2.76082]
[1733262627260,1.5728,3623.1,3622.7,2.76035]
[1733262627970,1.5728,3623.1,3622.4,1.6028]
[1733262628176,2.50071307,3623.4,3622.4,1.6028]
[1733262628338,2.50071307,3623.4,3622.9,2.7602]
[1733262628675,2.50071307,3623.4,3622.9,2.76015]
[1733262629877,2.50071307,3623.4,3623.0,2.76012]
[1733262630277,2.50071307,3623.4,3622.4,1.6028]
[1733262630585,2.50071307,3623.0,3622.7,2.7603]
[1733262631280,2.50071307,3623.0,3622.9,2.76021]
[1733262631497,2.50071307,3623.4,3623.0,2.7601]
[1733262632321,2.50071307,3623.4,3622.9,2.76021]
[1733262634374,2.50071307,3623.4,3622.7,2.76035]
[1733262634573,2.50071307,3623.4,3622.7,2.76032]
[1733262634905,2.50071307,3623.4,3622.8,2.76024]
[1733262637165,2.50071307,3623.4,3622.4,4.799685]
[1733262637592,2.50071307,3623.4,3622.9,2.76021]
[1733262638908,2.50071307,3623.0,3622.4,1.6028]
[1733262639075,2.50071307,3623.0,3622.9,2.76021]
[1733262640107,2.50071307,3623.4,3622.4,2.039155]
[1733262640403,2.50071307,3623.4,3623.1,2.76004]
[1733262641300,2.50071307,3623.4,3623.2,2.75995]
[1733262641503,2.50071307,3623.4,3623.1,2.76005]
[1733262643211,2.50071307,3623.4,3623.2,2.75997]
[1733262643362,2.50071307,3623.4,3623.3,2.75991]
[1733262644514,2.50071307,3623.4,3622.9,1.6563]
[1733262644665,2.50071307,3623.4,3623.2,2.75998]
[1733262645182,2.50071307,3623.4,3622.9,1.6563]
[1733262645183,2.50071307,3623.4,3623.0,2.76012]
[1733262645405,2.50071307,3623.1,3623.0,2.76012]
[1733262647421,2.50071307,3623.1,3622.6,1.6192]
[1733262647625,2.50071307,3622.8,3622.7,2.76037]
[1733262648688,2.50071307,3622.8,3622.2,1.6293]
[1733262648884,2.50071307,3622.8,3622.7,2.76037]
[1733262650189,1.5421,3623.3,3622.2,2.068326]
[1733262650396,2.50071307,3623.2,3621.7,2.76113]
[1733262650630,2.50071307,3623.2,3623.0,2.76013]
[1733262651129,2.50071307,3623.2,3622.8,2.76028]
[1733262651289,2.50071307,3623.2,3622.9,2.76018]
[1733262651691,2.50071307,3623.2,3622.7,2.76034]
[1733262652004,2.50071307,3622.8,3622.7,2.76034]
[1733262652417,2.50071307,3623.2,3622.4,1.5597]
[1733262652615,2.50071307,3623.2,3623.0,2.76013]
[1733262654488,2.50071307,3623.2,3622.6,2.7604]
[1733262654839,2.50071307,3623.2,3623.0,2.76009]
[1733262655237,0.20621527,3623.1,3623.0,2.76009]
[1733262655643,0.79489016,3623.1,3622.8,2.76027]
[1733262655817,0.20621527,3623.0,3622.8,2.76027]
[1733262656016,0.20621527,3622.9,3622.8,2.76029]
[1733262656446,0.5370904,3622.9,3622.8,2.76029]
[1733262656656,0.20621527,3622.9,3622.8,2.76029]
[1733262659845,0.20621527,3622.9,3622.6,2.76042]
[1733262660143,2.50071307,3623.2,3622.7,2.76037]
[1733262660144,0.20621527,3622.8,3622.7,2.76037]
[1733262660642,0.46475811,3622.8,3622.7,2.76037]
[1733262661502,0.46475811,3622.8,3622.7,3.468429]
[1733262661703,0.46475811,3622.8,3622.7,2.76037]
[1733262662357,0.46475811,3622.8,3622.5,2.76052]
[1733262662358,0.46475811,3622.8,3622.5,2.7605]
[1733262662557,1.98585811,3622.7,3622.2,2.76069]
[1733262662706,2.50071307,3622.4,3622.2,2.76069]
[1733262662907,0.46542359,3622.3,3621.6,4.31596]
[1733262663254,2.50071307,3622.0,3621.6,2.76119]
[1733262663410,2.50071307,3622.0,3621.7,2.76106]
[1733262663609,2.50071307,3622.0,3621.7,2.76112]
[1733262663824,0.46539109,3621.9,3621.5,2.76126]
[1733262664007,0.46539109,3621.9,3621.1,2.76158]
[1733262664008,2.50071307,3621.6,3621.0,1.5704]
[1733262664215,2.50071307,3621.1,3621.0,2.76166]
[1733262664523,2.50071307,3621.1,3620.5,2.76198]
[1733262664524,2.50071307,3621.1,3620.9,2.76174]
[1733262664926,0.53743916,3621.0,3620.9,2.76174]
[1733262665336,0.20670737,3621.0,3620.9,2.76174]
[1733262665548,0.20670737,3621.0,3620.2,2.7622]
[1733262665716,2.50071307,3620.7,3620.5,2.76204]
[1733262666109,0.20670737,3620.6,3620.5,2.76204]
[1733262667212,2.50071307,3620.7,3620.1,2.7623]
[1733262667461,2.50071307,3620.7,3620.6,2.76197]
[1733262667640,0.20602646,3620.7,3620.6,2.76197]
[1733262668139,2.50071307,3621.1,3620.1,0.4402]
[1733262668310,0.20590674,3621.0,3620.6,2.76193]
[1733262668510,0.20590674,3620.9,3620.6,2.76193]
[1733262668738,2.50071307,3621.1,3620.6,2.76193]
[1733262668956,0.20588167,3621.0,3620.6,2.76193]
[1733262669120,2.50071307,3620.7,3620.2,2.76224]
[1733262669872,2.50071307,3620.7,3620.3,2.76219]
[1733262670077,2.50071307,3620.7,3619.8,2.76252]
[1733262670247,1.5672,3621.0,3620.4,2.76206]
[1733262670636,1.5672,3621.0,3620.5,2.76202]
[1733262671082,2.50071307,3620.7,3620.2,2.76221]
[1733262671439,2.50071307,3620.7,3619.7,1.5179]
[1733262671774,1.5672,3621.0,3620.6,2.76197]
[1733262671977,1.5672,3621.0,3620.5,2.76204]
[1733262672149,1.5672,3621.0,3619.7,4.28054]
[1733262672150,1.5672,3621.0,3620.3,2.76217]
[1733262672474,1.5672,3621.0,3619.0,3.1]
[1733262672475,1.5672,3621.0,3620.4,3.038317]
[1733262672780,1.5672,3621.0,3620.6,2.76195]
[1733262673473,1.5672,3621.0,3620.7,2.76182]
[1733262674067,2.50071307,3621.1,3620.1,1.5941]
[1733262674273,2.50071307,3621.1,3620.8,2.7618]
[1733262674583,2.50071307,3621.1,3620.9,2.76174]
[1733262674883,1.5447,3621.3,3620.3,2.7622]
[1733262675244,1.5447,3621.3,3621.1,2.76158]
[1733262675578,2.50071307,3621.5,3621.1,2.76158]
[1733262676089,2.50071307,3621.5,3620.9,2.76172]
[1733262676387,2.50071307,3621.5,3620.5,2.762]
[1733262676743,2.50071307,3621.5,3620.7,2.76182]
[1733262677057,2.50071307,3621.5,3621.0,2.76164]
[1733262677261,2.50071307,3621.5,3620.4,1.5067]
[1733262677453,2.50071307,3621.5,3621.2,2.76148]
[1733262677782,1.5424,3621.6,3621.2,2.76148]
[1733262678237,1.5424,3621.6,3621.0,2.76164]
[1733262678687,1.5424,3621.6,3621.1,2.76158]
[1733262678857,1.5424,3621.6,3621.0,2.76164]
[1733262679855,1.5424,3621.6,3620.5,0.442826]
[1733262680054,1.5424,3621.6,3621.2,2.76148]
[1733262680255,1.5424,3621.6,3621.3,2.76142]
[1733262680701,1.5424,3621.6,3620.6,0.4711676]
[1733262681005,1.5141,3621.9,3621.5,2.76128]
[1733262681248,2.50071307,3622.2,3620.6,0.4711676]
[1733262681249,2.50071307,3622.2,3620.9,1.5045]
[1733262681554,1.5141,3622.2,3621.7,2.76106]
[1733262682607,1.5141,3622.2,3621.8,2.76102]
[1733262682851,1.5728,3622.6,3621.7,1.6596]
[1733262683062,1.5728,3622.6,3621.7,4.42069]
[1733262683063,0.20551874,3622.5,3621.7,4.42069]
[1733262683210,0.20551874,3622.4,3621.8,2.76101]
[1733262683407,2.50071307,3622.5,3621.9,2.76091]
[1733262684546,1.5728,3622.0,3620.9,2.76169]
[1733262684736,1.5728,3622.0,3621.4,2.76135]
[1733262684941,1.5728,3622.0,3621.0,3.197229]
[1733262684942,1.5728,3622.0,3621.2,2.76146]
[1733262685149,1.5728,3622.0,3621.3,2.76143]
[1733262686232,1.5102,3621.6,3620.7,1.5942]
[1733262686448,1.5102,3621.6,3620.8,2.76175]
[1733262687662,0.20591873,3621.5,3620.6,2.76194]
[1733262687834,2.50071307,3621.3,3620.7,2.76189]
[1733262688839,2.50071307,3621.3,3620.5,2.76202]
[1733262689174,2.50071307,3621.3,3620.7,2.76188]
[1733262689347,0.20617232,3621.2,3620.7,2.76188]
[1733262689667,2.50071307,3621.3,3620.7,2.76188]
[1733262689856,0.20617104,3621.2,3620.5,2.762]
[1733262690175,2.50071307,3621.3,3620.2,2.76227]
[1733262690478,0.20617624,3621.2,3620.6,2.76197]
[1733262690637,2.50071307,3621.3,3620.6,2.76197]
[1733262690837,0.20617718,3621.2,3620.6,2.76197]
[1733262691068,2.50071307,3621.3,3620.2,3.194887]
[1733262691272,2.50071307,3621.3,3620.2,0.432617]
[1733262691427,2.50071307,3621.3,3620.1,4.32621]
[1733262691629,0.20632499,3621.2,3620.1,1.5639]
[1733262691864,0.20632499,3621.2,3620.7,2.76182]
[1733262692071,0.20632499,3621.1,3620.7,2.76182]
[1733262692247,0.20632499,3621.0,3620.7,2.76182]
[1733262692429,2.50071307,3621.3,3620.7,2.76182]
[1733262692631,0.53694556,3621.2,3620.7,2.76182]
[1733262692831,2.50071307,3620.9,3620.1,1.5639]
[1733262693031,1.5728,3620.8,3620.1,1.996528]
[1733262693231,2.50071307,3620.9,3620.6,2.76196]
[1733262693632,0.20664084,3620.8,3620.6,2.76196]
[1733262693828,2.50071307,3620.9,3620.6,2.76196]
[1733262694032,0.20664158,3620.8,3620.4,2.76206]
[1733262694272,2.50071307,3620.9,3620.4,2.76206]
[1733262694580,0.20667288,3620.8,3620.4,2.76206]
[1733262694780,2.50071307,3620.9,3620.4,2.76206]
[1733262694935,0.2066749,3620.8,3620.4,2.76206]
[1733262695136,2.50071307,3620.9,3620.1,1.5639]
[1733262695333,0.206668,3620.8,3620.5,2.76198]
[1733262695636,2.50071307,3620.9,3620.5,2.76198]
[1733262695855,0.2066698,3620.8,3620.5,2.76198]
[1733262696044,2.50071307,3620.9,3620.5,2.76198]
[1733262696045,0.2066698,3620.7,3620.5,2.76198]
[1733262696248,2.50071307,3620.9,3620.5,2.76198]
[1733262696451,0.20666316,3620.8,3620.5,2.76198]
[1733262696734,0.20666316,3620.7,3620.5,2.76198]
[1733262697052,2.50071307,3620.9,3620.5,2.76198]
[1733262697447,0.20666423,3620.8,3620.3,2.76213]
[1733262697645,0.20666423,3620.7,3620.3,2.76213]
[1733262697833,2.50071307,3620.9,3620.1,2.76235]
[1733262698033,1.77947382,3620.8,3620.1,2.76235]
[1733262698232,0.20667382,3620.7,3620.1,2.76235]
[1733262698443,1.5728,3620.8,3620.1,2.76235]
[1733262698682,0.20666378,3620.7,3620.1,2.76235]
[1733262698972,1.5728,3620.8,3619.8,1.5076]
[1733262699188,2.50071307,3620.5,3620.0,2.76237]
[1733262699470,2.50071307,3620.5,3619.8,4.27018]
[1733262699683,1.5728,3620.4,3619.8,2.76258]
[1733262699846,0.20667639,3620.3,3619.8,2.76258]
[1733262700059,1.5728,3620.4,3619.8,2.76258]
[1733262700264,0.20668133,3620.3,3619.8,2.76258]
[1733262700494,1.5728,3620.4,3619.8,2.76258]
[1733262700704,0.20663187,3620.3,3619.5,1.5003]
[1733262700996,0.20663187,3620.2,3619.7,2.76262]
[1733262701227,1.5728,3620.4,3619.7,2.76262]
[1733262701370,0.46479831,3620.3,3619.8,2.76253]
[1733262701566,0.20657811,3620.2,3619.8,2.76253]
[1733262701750,1.5728,3620.4,3619.8,2.76253]
[1733262701951,0.46478716,3620.3,3619.8,2.76253]
[1733262702152,0.20657207,3620.2,3619.8,2.76253]
[1733262702352,1.5728,3620.4,3619.8,2.76253]